bitfinex/quotes_BTCUSD_20260308
["timestamp","ask_amount","ask_price","bid_price","bid_amount"]
[1772978386587,0.07455644,67262.0,67253.0,0.00462971]
[1772978389575,0.20223113,67260.0,67243.0,0.07898687]
[1772978389779,0.20472484,67260.0,67245.0,0.0745545]
[1772978390095,0.20472484,67260.0,67246.0,0.00148]
[1772978390309,0.20472484,67260.0,67246.0,0.00168]
[1772978390509,0.00022001,67259.0,67246.0,0.00168]
[1772978390658,0.00022001,67259.0,67247.0,0.00148]
[1772978391042,0.00022001,67259.0,67248.0,0.00148]
[1772978391596,0.07434059,67258.0,67248.0,0.00148]
[1772978391897,0.11869719,67250.0,67223.0,0.0002]
[1772978392106,0.00249371,67245.0,67223.0,0.0002]
[1772978392402,0.20223113,67240.0,67223.0,0.0002]
[1772978392562,0.20223113,67238.0,67223.0,0.00482971]
[1772978392749,0.20371113,67237.0,67223.0,0.0002]
[1772978392944,0.20223113,67235.0,67223.0,0.0002]
[1772978393151,0.20223113,67235.0,67223.0,0.0003206]
[1772978393549,0.20232544,67235.0,67223.0,0.0003206]
[1772978393759,0.07436713,67234.0,67223.0,0.0003206]
[1772978394741,0.07584713,67234.0,67223.0,0.00495031]
[1772978395246,0.07436713,67234.0,67223.0,0.00495031]
[1772978395801,0.07436713,67234.0,67224.0,0.07437819]
[1772978396146,0.07436713,67234.0,67224.0,0.00462971]
[1772978396308,0.07436713,67234.0,67224.0,0.00475031]
[1772978399251,0.07446144,67235.0,67224.0,0.00495031]
[1772978400441,0.07446144,67235.0,67224.0,0.07469872]
[1772978400644,0.07446144,67235.0,67225.0,0.00462971]
[1772978401316,9.431e-05,67235.0,67225.0,0.00475031]
[1772978401503,9.431e-05,67235.0,67225.0,0.0001206]
[1772978401692,9.431e-05,67235.0,67226.0,0.00462971]
[1772978401897,0.20232544,67235.0,67225.0,0.0001206]
[1772978402098,0.20232544,67235.0,67224.0,0.0002]
[1772978402099,9.431e-05,67235.0,67224.0,0.0002]
[1772978402465,0.07426456,67237.0,67224.0,0.0002]
[1772978402685,0.07426456,67237.0,67224.0,0.000597]
[1772978403494,0.00148,67236.0,67224.0,0.000597]
[1772978403898,0.00148,67236.0,67224.0,0.07497498]
[1772978404489,0.00148,67236.0,67224.0,0.000597]
[1772978406006,0.07436602,67235.0,67224.0,0.000597]
[1772978406403,0.07436602,67235.0,67225.0,0.00486102]
[1772978407211,0.07436602,67235.0,67224.0,0.000597]
[1772978407739,0.07436602,67235.0,67223.0,0.07457886]
[1772978407740,0.2094706,67232.0,67218.0,0.00647082]
[1772978407891,0.2094706,67232.0,67218.0,0.00172887]
[1772978408096,0.07437045,67231.0,67219.0,0.00486102]
[1772978408772,0.28384105,67231.0,67218.0,0.00172887]
[1772978410141,0.28369002,67231.0,67218.0,0.00636818]
[1772978411828,0.2094706,67230.0,67218.0,0.00636818]
[1772978412232,0.07437266,67229.0,67218.0,0.00636818]
[1772978412644,0.07437266,67229.0,67224.0,0.00015]
[1772978414369,0.07421942,67231.0,67224.0,0.00015]
[1772978414546,0.07406839,67231.0,67224.0,0.00015]
[1772978415062,0.001,67229.0,67224.0,0.00015]
[1772978415427,0.07406839,67231.0,67224.0,0.00015]
[1772978415657,0.07506839,67231.0,67224.0,0.00015]
[1772978416060,0.07406839,67231.0,67224.0,0.00015]
[1772978416880,0.07406839,67231.0,67218.0,0.00192887]
[1772978417114,0.28353899,67231.0,67218.0,0.00192887]
[1772978417488,0.001,67229.0,67218.0,0.00656818]
[1772978417862,0.28353899,67231.0,67218.0,0.00656818]
[1772978418065,0.28453899,67231.0,67218.0,0.00656818]
[1772978418463,0.28353899,67231.0,67218.0,0.00656818]
[1772978418666,0.07406839,67231.0,67218.0,0.00656818]
[1772978418948,0.07554839,67231.0,67218.0,0.00656818]
[1772978419729,0.07550839,67231.0,67218.0,0.00656818]
[1772978420418,0.07550839,67231.0,67224.0,0.0002]
[1772978421053,0.07550839,67231.0,67218.0,0.00656818]
[1772978421491,0.22402144,67231.0,67218.0,0.00656818]
[1772978422138,0.22502144,67231.0,67218.0,0.00656818]
[1772978422350,0.22402144,67231.0,67218.0,0.00656818]
[1772978423854,0.22402144,67231.0,67219.0,0.01197281]
[1772978425947,0.07387736,67231.0,67219.0,0.08635598]
[1772978426138,0.07387736,67231.0,67220.0,0.01197281]
[1772978428070,0.07372633,67231.0,67221.0,0.08635432]
[1772978428832,0.07372633,67231.0,67222.0,0.01197281]
[1772978429970,0.07372633,67231.0,67222.0,0.07438028]
[1772978430177,0.07372633,67231.0,67223.0,0.01197281]
[1772978430652,0.07437045,67233.0,67222.0,0.07438028]
[1772978430653,0.07436713,67234.0,67224.0,0.00148]
[1772978430869,0.07436713,67234.0,67225.0,0.01197281]
[1772978432007,0.07436675,67235.0,67226.0,0.07437598]
[1772978432192,0.07436675,67235.0,67227.0,0.01197281]
[1772978433812,0.07454438,67237.0,67228.0,0.01197281]
[1772978434062,0.14864211,67240.0,67230.0,0.01197281]
[1772978434198,0.07435812,67243.0,67232.0,0.01197281]
[1772978434405,0.07435812,67243.0,67233.0,0.01197281]
[1772978435032,0.07457673,67244.0,67233.0,0.01197281]
[1772978436284,0.07457673,67244.0,67235.0,0.01197281]
[1772978436487,0.00022001,67244.0,67235.0,0.01197281]
[1772978436690,0.07435396,67246.0,67237.0,0.01197281]
[1772978436884,0.07435497,67245.0,67237.0,0.01345281]
[1772978437097,1.01e-06,67245.0,67237.0,0.01345281]
[1772978437322,0.07435589,67246.0,67239.0,0.01197281]
[1772978437522,0.07435275,67247.0,67239.0,0.01197281]
[1772978437893,0.00015,67240.0,67239.0,0.01197281]
[1772978438096,0.07435275,67247.0,67239.0,0.01197281]
[1772978438319,0.07435275,67247.0,67240.0,0.01197281]
[1772978438514,0.07474969,67247.0,67240.0,0.01197281]
[1772978439338,0.0006098,67250.0,67240.0,0.01197281]
[1772978439635,0.07455171,67267.0,67240.0,0.01197281]
[1772978439636,0.07434062,67258.0,67240.0,0.01236975]
[1772978439837,0.07456013,67259.0,67244.0,0.01197281]
[1772978439959,0.07456013,67259.0,67247.0,0.21376114]
[1772978440155,0.07456013,67259.0,67248.0,0.01197281]
[1772978440359,0.07456013,67259.0,67250.0,0.01197281]
[1772978440767,0.07447088,67259.0,67250.0,0.01197281]
[1772978440970,0.00022001,67257.0,67250.0,0.01197281]
[1772978441171,0.00022001,67257.0,67247.0,0.07435272]
[1772978441369,0.00022001,67257.0,67249.0,0.01197281]
[1772978442389,0.00013076,67259.0,67250.0,0.01197281]
[1772978442798,0.07455418,67264.0,67252.0,0.01197281]
[1772978443000,0.20590361,67263.0,67249.0,0.05158105]
[1772978443240,0.20590361,67261.0,67245.0,0.07435396]
[1772978443423,0.20590361,67261.0,67246.0,0.00148]
[1772978443600,0.20590361,67261.0,67244.0,0.01197281]
[1772978443805,0.20580361,67261.0,67245.0,0.00148]
[1772978444104,0.20580361,67261.0,67244.0,0.08632871]
[1772978444610,0.20590361,67259.0,67244.0,0.08632884]
[1772978444991,0.20590361,67259.0,67244.0,0.08648904]
[1772978445636,0.20590361,67259.0,67244.0,0.07451623]
[1772978446021,0.20590361,67259.0,67244.0,0.08648904]
[1772978446371,0.20590361,67259.0,67244.0,0.07451623]
[1772978446577,0.2802442,67258.0,67246.0,0.07435386]
[1772978447387,0.2802442,67258.0,67247.0,0.01197281]
[1772978447807,0.07434059,67258.0,67247.0,0.01197281]
[1772978448008,0.07582059,67258.0,67247.0,0.01197281]
[1772978451405,0.07582059,67258.0,67248.0,0.08611889]
[1772978451543,0.07582059,67258.0,67248.0,0.07435165]
[1772978451746,0.07582059,67258.0,67248.0,0.08611889]
[1772978452663,0.07582059,67258.0,67249.0,0.01176724]
[1772978452869,0.2817242,67258.0,67247.0,0.08611946]
[1772978453070,0.2817242,67258.0,67248.0,0.01176724]
[1772978453272,0.2802442,67258.0,67248.0,0.08611824]
[1772978454175,0.07434059,67258.0,67248.0,0.074351]
[1772978454370,0.07434059,67258.0,67249.0,0.02510158]
[1772978454626,0.07433844,67260.0,67250.0,0.00148]
[1772978454844,0.07433844,67260.0,67251.0,0.02510158]
[1772978455566,0.07433844,67260.0,67252.0,0.09944881]
[1772978455773,0.07433844,67260.0,67253.0,0.02510158]
[1772978455976,0.07433666,67262.0,67252.0,0.07434723]
[1772978455977,0.08029998,67268.0,67255.0,0.02510158]
[1772978456189,0.08029998,67268.0,67257.0,0.02510158]
[1772978456344,0.00022001,67271.0,67259.0,0.02510158]
[1772978457171,0.00022001,67271.0,67259.0,0.02495158]
[1772978457944,0.00022001,67271.0,67261.0,0.004925]
[1772978458164,0.00022001,67271.0,67262.0,0.006405]
[1772978458428,0.00022001,67271.0,67262.0,0.00148]
[1772978458701,0.00022001,67271.0,67262.0,0.006405]
[1772978458936,0.00022001,67271.0,67262.0,0.00148]
[1772978459205,0.07451699,67279.0,67266.0,0.005]
[1772978459206,0.0001992,67279.0,67266.0,0.005]
[1772978459504,0.0001992,67279.0,67267.0,0.005]
[1772978459802,0.0001992,67279.0,67269.0,0.005]
[1772978460202,0.0001992,67279.0,67270.0,0.07432733]
[1772978460407,0.0001992,67279.0,67271.0,0.005]
[1772978460647,0.20590361,67278.0,67269.0,0.0743281]
[1772978460884,0.0001992,67279.0,67269.0,0.005]
[1772978461098,0.20610281,67279.0,67269.0,0.005]
[1772978462588,0.07431849,67278.0,67269.0,0.005]
[1772978462792,0.00022001,67271.0,67269.0,0.005]
[1772978464348,0.00022001,67271.0,67269.0,0.07432843]
[1772978464558,0.00022001,67271.0,67270.0,0.005]
[1772978467541,0.21540385,67270.0,67256.0,0.07434267]
[1772978467753,0.21540385,67270.0,67250.0,0.0004]
[1772978467980,0.2155228,67270.0,67250.0,0.074749]
[1772978468626,0.21540385,67268.0,67250.0,0.074749]
[1772978468845,0.21540385,67266.0,67250.0,0.074749]
[1772978469816,0.21540385,67266.0,67245.0,0.07603478]
[1772978470018,0.21540385,67266.0,67245.0,0.0002]
[1772978470188,0.21540385,67266.0,67246.0,0.00148]
[1772978470597,0.07433286,67265.0,67246.0,0.00148]
[1772978470750,0.21540385,67264.0,67246.0,0.07583369]
[1772978470955,0.21540385,67264.0,67245.0,0.07455483]
[1772978471425,0.21540385,67264.0,67246.0,0.00148]
[1772978472690,0.07433507,67263.0,67245.0,0.0002]
[1772978472894,0.21540385,67262.0,67245.0,0.0002]
[1772978473063,0.21540385,67260.0,67245.0,0.00168]
[1772978473930,0.21540385,67260.0,67245.0,0.0002]
[1772978474107,0.07433507,67263.0,67246.0,0.2145094]
[1772978474451,0.28973671,67268.0,67245.0,0.00168]
[1772978474452,0.07454658,67271.0,67251.0,0.005]
[1772978474643,0.21730306,67279.0,67254.0,0.2145094]
[1772978474813,0.21730306,67279.0,67258.0,0.005]
[1772978474814,0.07472191,67275.0,67258.0,0.005]
[1772978475027,0.07472191,67275.0,67261.0,0.2145094]
[1772978475207,0.07472191,67275.0,67263.0,0.005]
[1772978475568,0.07472191,67275.0,67262.0,0.00148]
[1772978475569,0.21540385,67274.0,67262.0,0.00148]
[1772978476305,0.21540385,67274.0,67257.0,0.005]
[1772978476525,0.21540385,67274.0,67259.0,0.005]
[1772978476725,0.21540385,67274.0,67260.0,0.00148]
[1772978476932,0.07432402,67273.0,67260.0,0.07581764]
[1772978477133,0.21540385,67272.0,67256.0,0.0743428]
[1772978477367,0.21540385,67272.0,67259.0,0.00148]
[1772978478173,0.00148,67271.0,67256.0,0.0743428]
[1772978478411,0.21540385,67270.0,67258.0,0.00148]
[1772978479178,0.28973229,67269.0,67259.0,0.07433949]
[1772978479380,0.21540385,67268.0,67259.0,0.07433949]
[1772978479601,0.21540385,67268.0,67256.0,0.0743428]
[1772978480119,0.21540385,67268.0,67256.0,0.0758228]
[1772978480342,0.21540385,67268.0,67256.0,0.0743428]
[1772978480560,0.21540385,67268.0,67256.0,0.0758228]
[1772978480986,0.21540385,67268.0,67257.0,0.00148]
[1772978481225,0.2897345,67267.0,67255.0,0.07582307]
[1772978481922,0.2897345,67267.0,67254.0,0.00011895]
[1772978481923,0.21540385,67266.0,67254.0,0.00011895]
[1772978482268,0.21540385,67266.0,67252.0,0.07578692]
[1772978482499,0.2155228,67266.0,67252.0,0.07578692]
[1772978482902,0.21540385,67264.0,67246.0,0.07583386]
[1772978483304,0.21540385,67262.0,67246.0,0.07583386]
[1772978483513,0.21540385,67262.0,67246.0,0.08083386]
[1772978483733,0.21540385,67262.0,67246.0,0.07935386]
[1772978484009,0.21540385,67262.0,67255.0,0.0002]
[1772978484210,0.21540385,67262.0,67248.0,0.0002]
[1772978484410,0.21540385,67262.0,67246.0,0.07435386]
[1772978485254,0.21540385,67262.0,67247.0,0.00148]
[1772978486332,0.21540385,67260.0,67248.0,0.07435165]
[1772978488381,0.07433949,67259.0,67248.0,0.07435165]
[1772978489236,0.28974334,67259.0,67248.0,0.07435165]
[1772978489643,0.28974334,67259.0,67248.0,0.07583165]
[1772978489849,0.21540385,67258.0,67248.0,0.00148]
[1772978490070,0.21540385,67258.0,67247.0,0.07435237]
[1772978490267,0.21540385,67258.0,67248.0,0.00148]
[1772978490471,0.21540385,67256.0,67246.0,0.07583324]
[1772978490679,0.0743417,67257.0,67247.0,0.005]
[1772978491215,0.0743417,67257.0,67248.0,0.0002]
[1772978491559,0.0743417,67257.0,67248.0,0.00168]
[1772978491967,0.0743417,67257.0,67249.0,0.005]
[1772978492170,0.03162884,67258.0,67249.0,0.005]
[1772978492346,0.07433838,67262.0,67251.0,0.005]
[1772978492758,0.2871585,67262.0,67251.0,0.005]
[1772978493378,0.2871185,67262.0,67251.0,0.005]
[1772978494237,0.07433286,67265.0,67251.0,0.005]
[1772978494389,0.07433286,67265.0,67253.0,0.005]
[1772978494603,0.07433286,67265.0,67252.0,0.07434723]
[1772978494604,0.07433286,67265.0,67255.0,0.005]
[1772978496542,0.00011895,67266.0,67257.0,0.005]
[1772978498053,0.00011895,67266.0,67255.0,0.07454316]
[1772978499538,0.00011895,67266.0,67256.0,0.005]
[1772978501076,0.07433396,67264.0,67255.0,0.0002]
[1772978501234,0.21282012,67263.0,67254.0,0.00148]
[1772978504168,0.28715629,67262.0,67254.0,0.00148]
[1772978504366,0.28715629,67262.0,67251.0,0.0743481]
[1772978504644,0.28715629,67262.0,67252.0,0.00148]
[1772978505411,0.28715629,67262.0,67252.0,0.0015783]
[1772978506793,0.21282012,67261.0,67251.0,0.0002]
[1772978507419,0.21282012,67261.0,67245.0,0.0002]
[1772978507643,0.21282012,67261.0,67245.0,0.00168]
[1772978508046,0.21282012,67261.0,67245.0,0.0002]
[1772978508333,0.07433838,67260.0,67245.0,0.0002]
[1772978508532,0.21282012,67259.0,67245.0,0.0002]
[1772978509937,0.00148,67258.0,67245.0,0.0052]
[1772978510384,0.0743428,67256.0,67245.0,0.07955418]
[1772978510589,0.0743428,67256.0,67243.0,0.07435707]
[1772978510590,0.21282012,67255.0,67241.0,0.00595]
[1772978510743,0.21282012,67255.0,67232.0,0.17755003]
[1772978510744,0.00452623,67252.0,67232.0,0.00148]
[1772978510943,0.00452623,67248.0,67232.0,0.00148]
[1772978511185,0.21282012,67245.0,67232.0,0.00148]
[1772978511472,0.21430012,67245.0,67232.0,0.00148]
[1772978511651,0.21882635,67245.0,67232.0,0.00148]
[1772978512442,0.28717619,67244.0,67232.0,0.00187694]
[1772978512817,0.28717619,67244.0,67232.0,0.07624591]
[1772978513447,0.21282012,67243.0,67232.0,0.07624591]
[1772978513848,0.21282012,67243.0,67227.0,0.0001027]
[1772978514073,0.21282012,67242.0,67225.0,0.0006]
[1772978514300,0.21282012,67242.0,67225.0,0.07497691]
[1772978514527,0.21282012,67242.0,67232.0,0.0002]
[1772978514909,0.21282012,67240.0,67225.0,0.07497691]
[1772978515115,0.07435939,67241.0,67225.0,0.07497691]
[1772978515116,0.21282012,67238.0,67225.0,0.07497691]
[1772978515781,0.07435939,67241.0,67226.0,0.005]
[1772978515970,0.21282012,67239.0,67226.0,0.005]
[1772978516592,0.00148,67240.0,67226.0,0.005]
[1772978517218,0.0743616,67239.0,67228.0,0.005]
[1772978518134,0.21321657,67243.0,67228.0,0.005]
[1772978518135,0.07435828,67242.0,67228.0,0.00148]
[1772978518337,0.00148,67242.0,67230.0,0.005]
[1772978518533,0.07435828,67242.0,67230.0,0.005]
[1772978518684,0.00187645,67243.0,67230.0,0.005]
[1772978518885,0.00187645,67243.0,67231.0,0.005]
[1772978519116,0.00187645,67243.0,67228.0,0.00148]
[1772978519117,0.00039645,67243.0,67232.0,0.20713839]
[1772978519318,0.00039645,67243.0,67234.0,0.005]
[1772978519512,0.00148,67248.0,67236.0,0.005]
[1772978519864,0.07434984,67250.0,67236.0,0.00539645]
[1772978519865,0.07582984,67250.0,67236.0,0.00539645]
[1772978520396,0.07434483,67255.0,67237.0,0.20713839]
[1772978520751,0.21430012,67253.0,67238.0,0.005]
[1772978521184,0.00148,67252.0,67238.0,0.005]
[1772978521403,0.07434833,67251.0,67239.0,0.0743616]
[1772978521606,0.21282012,67250.0,67237.0,0.07436372]
[1772978522137,0.14798379,67250.0,67221.0,0.005]
[1772978522365,0.21361681,67250.0,67222.0,0.07586001]
[1772978522640,0.20249328,67249.0,67222.0,0.07586001]
[1772978523508,0.07435165,67248.0,67222.0,0.07586001]
[1772978523705,0.20397328,67247.0,67224.0,0.005]
[1772978524560,0.20249328,67247.0,67224.0,0.005]
[1772978524765,0.19982125,67245.0,67224.0,0.005]
[1772978524969,0.19982125,67245.0,67224.0,0.006]
[1772978525162,0.19982125,67245.0,67225.0,0.005]
[1772978526320,0.19982125,67243.0,67227.0,0.005]
[1772978526561,0.19982125,67243.0,67226.0,0.07437598]
[1772978526730,0.19982125,67243.0,67223.0,0.07585924]
[1772978526933,0.19982125,67243.0,67224.0,0.005]
[1772978527341,0.07435607,67244.0,67224.0,0.005]
[1772978527342,0.19982125,67241.0,67224.0,0.005]
[1772978527743,0.00148,67240.0,67224.0,0.005]
[1772978527948,0.19982125,67239.0,67224.0,0.005]
[1772978528734,0.19982125,67237.0,67225.0,0.07437709]
[1772978529363,0.19982125,67237.0,67217.0,0.0747769]
[1772978529524,0.19982125,67237.0,67220.0,0.005]
[1772978530545,0.00148,67236.0,67220.0,0.005]
[1772978530773,0.07436713,67234.0,67221.0,0.07438151]
[1772978530930,0.19982125,67233.0,67221.0,0.07438151]
[1772978531457,0.19982125,67233.0,67222.0,0.005]
[1772978532541,0.19978125,67233.0,67222.0,0.005]
[1772978533150,0.07436934,67232.0,67223.0,0.0743793]
[1772978533552,0.07436934,67232.0,67222.0,0.07938022]
[1772978533752,0.07436934,67232.0,67222.0,0.07438022]
[1772978533753,0.19982125,67231.0,67222.0,0.07438022]
[1772978533953,0.19982125,67229.0,67220.0,0.07434262]
[1772978534547,0.00148,67230.0,67220.0,0.07934262]
[1772978535335,0.00155075,67230.0,67220.0,0.07934262]
[1772978535561,0.00155075,67230.0,67224.0,0.00015]
[1772978535562,0.07437266,67229.0,67224.0,0.00015]
[1772978535961,0.19982125,67228.0,67219.0,0.0002]
[1772978536341,0.19982125,67228.0,67218.0,0.0002]
[1772978536724,0.19982125,67228.0,67215.0,0.00148]
[1772978536933,0.19982125,67226.0,67207.0,0.00148]
[1772978537116,0.19982125,67221.0,67207.0,0.00148]
[1772978537471,0.07438483,67218.0,67206.0,0.07439811]
[1772978537671,0.07438483,67218.0,67206.0,0.07459811]
[1772978539075,0.07438483,67218.0,67200.0,0.20710484]
[1772978539076,0.19982125,67215.0,67195.0,0.00148]
[1772978539320,0.19982125,67213.0,67196.0,0.005]
[1772978539460,0.19982125,67211.0,67196.0,0.005]
[1772978540822,0.19982125,67211.0,67195.0,0.07441025]
[1772978541162,0.19982125,67211.0,67193.0,0.074412]
[1772978541369,0.19982125,67211.0,67193.0,0.079412]
[1772978541664,0.07439147,67215.0,67193.0,0.079412]
[1772978541665,0.07437819,67224.0,67200.0,0.21410374]
[1772978541844,0.00148,67223.0,67204.0,0.21410374]
[1772978542228,0.07437819,67224.0,67206.0,0.005]
[1772978542435,0.00148,67223.0,67208.0,0.005]
[1772978542641,0.27459895,67225.0,67211.0,0.21410374]
[1772978542642,0.07625749,67225.0,67211.0,0.21410374]
[1772978542848,0.07625749,67225.0,67212.0,0.14754309]
[1772978543056,0.07625749,67225.0,67213.0,0.005]
[1772978543204,0.07625749,67225.0,67214.0,0.16127974]
[1772978543405,0.07625749,67225.0,67215.0,0.14741764]
[1772978543606,0.07625749,67225.0,67216.0,0.14741764]
[1772978543809,0.07625749,67225.0,67217.0,0.14741764]
[1772978543980,0.07625749,67225.0,67215.0,0.07438775]
[1772978544183,0.07625749,67225.0,67216.0,0.14744847]
[1772978544382,0.07625749,67225.0,67217.0,0.14744847]
[1772978544655,0.07621749,67225.0,67215.0,0.08824985]
[1772978544846,0.07621749,67225.0,67216.0,0.1474429]
[1772978545018,0.07621749,67225.0,67217.0,0.1474429]
[1772978545202,0.07473749,67225.0,67216.0,0.02666514]
[1772978545438,0.00148,67224.0,67217.0,0.14743394]
[1772978545645,0.0743793,67223.0,67216.0,0.02666514]
[1772978545952,0.0743793,67223.0,67217.0,0.14743311]
[1772978546129,0.0743793,67223.0,67216.0,0.10105217]
[1772978546328,0.0743793,67223.0,67217.0,0.14743635]
[1772978546550,0.0743793,67223.0,67216.0,0.10105217]
[1772978546786,0.0743793,67223.0,67217.0,0.14943368]
[1772978546969,0.0743793,67223.0,67218.0,0.14743368]
[1772978547122,0.0743793,67223.0,67218.0,0.02666514]
[1772978547528,0.0743793,67223.0,67216.0,0.001]
[1772978547780,0.0743793,67223.0,67217.0,0.14743843]
[1772978547996,0.0743793,67223.0,67216.0,0.001]
[1772978548151,0.0743793,67223.0,67217.0,0.14744023]
[1772978548350,0.0743793,67223.0,67218.0,0.14744023]
[1772978548552,0.0743793,67223.0,67215.0,0.1034445]
[1772978548752,0.00148,67224.0,67216.0,0.25089033]
[1772978548953,0.07437851,67224.0,67217.0,0.14744694]
[1772978549167,0.07585851,67224.0,67218.0,0.14744694]
[1772978549388,0.07585851,67224.0,67219.0,0.14744694]
[1772978549730,0.07585851,67224.0,67216.0,0.10344339]
[1772978549930,0.07585851,67224.0,67217.0,0.14745892]
[1772978550247,0.07585851,67224.0,67214.0,0.07438705]
[1772978550248,0.07585851,67224.0,67213.0,0.0289873]
[1772978551270,0.07585851,67224.0,67215.0,0.02917296]
[1772978551496,0.07437069,67231.0,67215.0,0.02917296]
[1772978551497,0.246,67248.0,67215.0,0.02917296]
[1772978551736,0.07467189,67230.0,67218.0,0.21410374]
[1772978551898,0.07467189,67230.0,67221.0,0.02917296]
[1772978553051,0.07467189,67230.0,67221.0,0.001]
[1772978553708,0.07467189,67230.0,67221.0,0.0753814]
[1772978554222,0.07467189,67230.0,67221.0,0.0743814]
[1772978554418,0.0748919,67230.0,67221.0,0.0743814]
[1772978554802,0.005,67229.0,67220.0,0.07438185]
[1772978555477,0.005,67227.0,67218.0,0.07438421]
[1772978555852,0.07437377,67228.0,67218.0,0.07438421]
[1772978556065,0.07437377,67228.0,67217.0,0.19248992]
[1772978556066,0.20378997,67224.0,67197.0,0.22137326]
[1772978556260,0.20378997,67224.0,67194.0,0.07461138]
[1772978556261,0.005,67220.0,67196.0,0.00016]
[1772978556460,0.005,67218.0,67197.0,0.20332]
[1772978556657,0.00148,67217.0,67197.0,0.20332]
[1772978556888,0.005,67215.0,67197.0,0.20332]
[1772978557065,0.005,67213.0,67196.0,0.07456911]
[1772978557268,0.07439258,67211.0,67196.0,0.07456911]
[1772978557433,0.005,67210.0,67196.0,0.07456911]
[1772978558407,0.005,67210.0,67196.0,0.00016]
[1772978558607,0.005,67210.0,67197.0,0.00148]
[1772978558927,0.005,67210.0,67196.0,0.00016]
[1772978559108,0.005,67210.0,67198.0,0.00148]
[1772978559342,0.07439479,67209.0,67198.0,0.07588654]
[1772978559553,0.07939479,67209.0,67198.0,0.07588654]
[1772978559737,0.07439479,67209.0,67198.0,0.00148]
[1772978559937,0.005,67208.0,67198.0,0.07588678]
[1772978560456,0.005,67208.0,67198.0,0.07600585]
[1772978561448,0.07939701,67207.0,67198.0,0.00159907]
[1772978561647,0.005,67206.0,67198.0,0.00159907]
[1772978562115,0.20378997,67205.0,67196.0,0.00016]
[1772978562265,0.005,67203.0,67196.0,0.00025431]
[1772978562471,0.20378997,67202.0,67194.0,0.0002]
[1772978562671,0.005,67201.0,67194.0,0.00031908]
[1772978563052,0.20378997,67200.0,67187.0,0.00595]
[1772978563278,0.005,67199.0,67187.0,0.08036905]
[1772978563473,0.07440697,67198.0,67187.0,0.08036905]
[1772978563681,0.00148,67197.0,67187.0,0.08036905]
[1772978563879,0.005,67195.0,67187.0,0.08036905]
[1772978564327,0.005,67195.0,67187.0,0.00595]
[1772978564537,0.005,67194.0,67187.0,0.08036897]
[1772978566139,0.07941185,67194.0,67187.0,0.08036897]
[1772978566568,0.07441185,67194.0,67187.0,0.08036897]
[1772978567457,0.07437185,67194.0,67187.0,0.08036897]
[1772978567897,0.07440772,67198.0,67187.0,0.08036897]
[1772978568111,0.07452437,67200.0,67189.0,0.07441694]
[1772978568370,0.35194628,67209.0,67190.0,0.2048]
[1772978568371,0.0743959,67208.0,67190.0,0.2048]
[1772978568605,0.0743959,67208.0,67190.0,0.20491888]
[1772978568818,0.0743959,67208.0,67191.0,0.2048]
[1772978569003,0.005,67207.0,67191.0,0.2048]
[1772978570072,0.07439811,67206.0,67192.0,0.07441362]
[1772978570664,0.07439495,67209.0,67193.0,0.20332]
[1772978571507,0.005,67208.0,67193.0,0.20332]
[1772978571710,0.005,67208.0,67192.0,0.07441362]
[1772978571711,0.005,67207.0,67192.0,0.07441362]
[1772978572374,0.005,67204.0,67191.0,0.07589362]
[1772978572574,0.20378997,67203.0,67192.0,0.00148]
[1772978572875,0.005,67201.0,67193.0,0.001]
[1772978573376,0.005,67201.0,67193.0,0.00148]
[1772978574345,0.07440254,67202.0,67193.0,0.00148]
[1772978574541,0.00896942,67201.0,67193.0,0.00148]
[1772978576250,0.08337418,67200.0,67193.0,0.00148]
[1772978576476,0.07440476,67200.0,67193.0,0.00148]
[1772978576676,0.00896942,67199.0,67193.0,0.00148]
[1772978577607,0.00896942,67199.0,67193.0,0.00168]
[1772978578659,0.07440697,67198.0,67193.0,0.00168]
[1772978580210,0.07439258,67212.0,67194.0,0.20332]
[1772978580430,0.00148,67211.0,67194.0,0.20332]
[1772978580678,0.01209267,67208.0,67190.0,0.00046888]
[1772978580893,0.20378997,67205.0,67192.0,0.00148]
[1772978581181,0.01209267,67202.0,67192.0,0.00148]
[1772978581328,0.00148,67205.0,67192.0,0.00148]
[1772978582355,0.02024731,67209.0,67192.0,0.00148]
[1772978582538,0.07439369,67210.0,67192.0,0.00148]
[1772978582539,0.02024731,67207.0,67192.0,0.00148]
[1772978582738,0.07439811,67206.0,67193.0,0.07441251]
[1772978583582,0.07439188,67212.0,67194.0,0.20764224]
[1772978584592,0.02024731,67211.0,67194.0,0.20764224]
[1772978584822,0.094641,67210.0,67196.0,0.21072241]
[1772978585025,0.07439369,67210.0,67196.0,0.21072241]
[1772978586739,0.07439188,67212.0,67197.0,0.07440808]
[1772978586921,0.02024731,67211.0,67198.0,0.00148]
[1772978587734,0.00022001,67206.0,67198.0,0.00148]
[1772978589323,0.09464653,67205.0,67198.0,0.07588626]
[1772978589602,0.02024731,67204.0,67198.0,0.07588626]
[1772978590639,0.07439922,67205.0,67198.0,0.07588626]
[1772978593843,0.07461857,67206.0,67198.0,0.07588626]
[1772978595255,0.0743959,67208.0,67198.0,0.07588626]
[1772978595480,0.07439573,67209.0,67198.0,0.07588626]
[1772978595649,0.2123226,67206.0,67198.0,0.07588626]
[1772978595869,0.02024731,67205.0,67198.0,0.07588626]
[1772978598364,0.09464707,67205.0,67198.0,0.07588626]
[1772978599733,0.07439976,67205.0,67193.0,0.0002]
[1772978599903,0.02649731,67204.0,67194.0,0.0744114]
[1772978600106,0.02649731,67204.0,67195.0,0.00148]
[1772978600320,0.17500321,67204.0,67195.0,0.00148]
[1772978600492,0.17500321,67204.0,67194.0,0.0744114]
[1772978600691,0.17500321,67204.0,67195.0,0.00148]
[1772978600993,0.17500321,67204.0,67194.0,0.0744114]
[1772978601316,0.17500321,67204.0,67195.0,0.00148]
[1772978601519,0.07440144,67203.0,67193.0,0.0002]
[1772978601848,0.07440144,67203.0,67194.0,0.00148]
[1772978602070,0.07440144,67203.0,67193.0,0.0002]
[1772978602279,0.07440144,67203.0,67195.0,0.00148]
[1772978602650,0.22290734,67203.0,67195.0,0.00148]
[1772978602860,0.02649731,67201.0,67187.0,0.08036879]
[1772978603086,0.2123226,67200.0,67187.0,0.00595]
[1772978603295,0.02649731,67199.0,67187.0,0.00595]
[1772978603725,0.02649731,67197.0,67187.0,0.00595]
[1772978605568,0.02649731,67197.0,67187.0,0.00591]
[1772978605769,0.07452349,67201.0,67189.0,0.21072241]
[1772978607950,0.00011908,67201.0,67190.0,0.07441583]
[1772978608686,0.00011908,67201.0,67190.0,0.28513824]
[1772978608862,0.00022001,67205.0,67191.0,0.21072241]